[Event "45th FIDE Olympiad 2024"]
[Site "Budapest"]
[Date "2024.09.19"]
[Round "8.54"]
[White "Prasad, Rudr"]
[Black "Carpenter, Paul A"]
[Result "1-0"]
[WhiteElo "1777"]
[BlackElo "1985"]
[Annotator "TA"]
[PlyCount "71"]
[EventDate "2024.09.05"]
[EventType "team-tourn"]
[EventCountry "HUN"]
[WhiteTeam "Fiji"]
[BlackTeam "Jersey"]
[WhiteTeamCountry "FIJ"]
[TimeControl "40/5400+30:1800+30"]

{[%evp 9,70,30,77,67,97,43,33,25,44,34,19,0,21,-11,41,50,79,28,83,75,94,94,58,37,80,74,97,62,80,79,67,-13,-16,-30,-16,-20,-9,-9,0,0,0,0,0,0,171,159,366,350,407,416,411,403,397,407,613,623,721,706,705,703,5764,5764,29999]} 1. d4 d6 2. c4 Nf6 3. g3 c6 4. Bg2 Nbd7 5. Nf3 Qc7 {is verkieslijker.} (5... g6 $11) 6. O-O e5 {Onnauwkeurig} {Wit kan het beste spelen.} 7. dxe5 {Fout (0.5)} (7. Nc3 $16) 7... dxe5 $14 8. Nc3 {OK. Wit staat iets beter.} Be7 9. Qc2 {OK} O-O 10. Rd1 Re8 {OK} 11. Rb1 {Onnauwkeurig} {Zwart kan beter kiezen voor.} Nb6 {Fout (0.5)} (11... a5 $11) 12. b3 {OK} Bg4 {Onnauwkeurig} {Wit zou kunnen overwegen.} 13. Bb2 {Fout (0.5)} (13. h3 $16 Bd7 14. Bg5) 13... Bh5 {Behoudt de evenwichtsstemming. Fout (0.6)} (13... Bc5 $11) 14. Nh4 $16 {OK} Bc5 15. Ne4 {OK} Nxe4 {OK} 16. Bxe4 Bg6 {Onnauwkeurig} 17. Nxg6 {OK} hxg6 18. Bg2 {OK} Nd7 19. a3 {OK} a5 {[#] OK} {Wit kan beter kiezen voor} 20. b4 {Fout (0.8)} axb4 $11 {Beste (Gemakkelijk)} 21. axb4 Bxb4 22. Bxe5 $1 {Sterk} Rxe5 23. Rxb4 {OK} Rae8 24. e3 {OK} Nc5 {Tegen Ra4} 25. Qb2 Qe7 {OK} 26. Qd4 Qf6 $2 {[#] en Zwart is onbezorgd. Verliest partij (1.7)} (26... Re6 $11) 27. f4 $1 $18 {Sterk} Rxe3 {Kan beter werken. Deze zet verliest de partij voor Zwart. Verliest partij (2.1)} (27... Rf5 $16) 28. Qxc5 {Beste (Gemakkelijk)} Re1+ 29. Rxe1 {Beste (Gemakkelijk)} Rxe1+ {[#]} 30. Bf1 $1 {Sterk} (30. Kf2 $2 Qc3 $19) 30... Qa1 {[%cal Re1f1]} 31. Qf2 {OK} b6 {Fout (2.1)} (31... b5 $142 32. cxb5 cxb5 33. Rxb5 f5) 32. Rxb6 {OK} Re6 33. Rb8+ Kh7 34. g4 g5 {Voorkomt Qh4+.} 35. fxg5 Kg6 36. Qf5# {Blunder waarde: Wit=0.11 (erg precies) /Zwart=0.86.  Verliest partij:   	---       	Zwart=2      Fout:        	Wit=3      	Zwart=3      Onnauwkeurig:    	Wit=1      	Zwart=3      OK:         	Wit=12     	Zwart=4      Beste:        	Wit=2      	Zwart=1      Sterk:        	Wit=3      	---} 1-0

[Event "45th FIDE Olympiad 2024"]
[Site "Budapest"]
[Date "2024.09.19"]
[Round "8.55"]
[White "Miranda Mesa, Elier"]
[Black "Nabaty, Tamir"]
[Result "1-0"]
[ECO "C67"]
[WhiteElo "2512"]
[BlackElo "2630"]
[Annotator "TA"]
[PlyCount "129"]
[EventDate "2024.09.05"]
[EventType "team-tourn"]
[EventCountry "HUN"]
[SourceTitle "playchess.com"]
[Source "ChessBase"]
[SourceQuality "1"]
[WhiteTeam "Cuba"]
[BlackTeam "Israel"]
[WhiteTeamCountry "CUB"]
[BlackTeamCountry "ISR"]
[TimeControl "40/5400+30:1800+30"]

{[%evp 79,129,-24,-25,-31,-31,-23,-21,-32,-8,-8,-7,-7,-7,-8,-8,-8,0,0,0,-8,-8,-8,-8,-8,-8,-8,-8,-8,-8,-8,0,0,490,504,595,566,556,0,8,0,543,516,944,1185,1147,1164,1168,1037,967,806,562,561]} 1. e4 {[%emt 0:00:03]} e5 {[%emt 0:00:09]} 2. Nf3 {[%emt 0:00:06]} Nc6 {[%emt 0:00:07]} 3. Bb5 {[%emt 0:00:05]} Nf6 {[%emt 0:00:11]} 4. O-O {[%emt 0:01:49]} Nxe4 {[%emt 0:00:16]} 5. Re1 {[%emt 0:00:40]} Nd6 {[%emt 0:00:18]} 6. Nxe5 {[%emt 0:01:11]} Be7 {[%emt 0:00:19]} 7. Bf1 {[%emt 0:00:34]} Nxe5 {[%emt 0:00:11]} 8. Rxe5 {[%emt 0:00:03]} O-O {[%emt 0:00:21]} 9. d4 {[%emt 0:00:22]} Ne8 {[%emt 0:00:41] C67: Ruy Lopez: Berlin Defence: 4 0-0 Nxe4.} 10. Re1 {[%emt 0:07:07]} d5 {[%emt 0:01:19]} 11. c3 {[%emt 0:06:47]} g6 $146 {[%emt 0:02:20]} ({Predecessor:} 11... c6 12. Bf4 Bd6 13. Bxd6 Nxd6 14. Bd3 Bf5 15. Bxf5 Nxf5 16. Nd2 Re8 17. Rxe8+ Qxe8 18. Qf1 Qd7 19. Re1 Re8 20. Re2 Nd6 21. Qe1 Rxe2 22. Qxe2 f6 23. h3 {½-½ Bulski,K (2534)-L'Ami,E (2645) Bundesliga 1314 2013 (8.2)}) 12. Nd2 {[%emt 0:05:12]} Ng7 {[%emt 0:01:04]} 13. Nf3 {[%emt 0:02:48]} c6 {[%emt 0:01:45]} 14. Ne5 {[%emt 0:06:05]} Bd6 {[%emt 0:02:33]} 15. h3 {[%emt 0:13:10]} f6 {[%emt 0:06:07]} 16. Nd3 {[%emt 0:00:40]} Qc7 {[%emt 0:01:22]} 17. Bh6 {[%emt 0:03:27]} Bf5 {[%emt 0:04:15]} 18. Qd2 {[%emt 0:03:45]} Rae8 {[%emt 0:09:39]} 19. Bf4 {[%emt 0:03:24]} g5 {[%emt 0:03:38]} 20. Bxd6 {[%emt 0:01:02]} Qxd6 {[%emt 0:00:03]} 21. Rxe8 {[%emt 0:01:27]} Rxe8 {[%emt 0:00:08]} 22. Re1 {[%emt 0:00:06]} Kf7 {[%emt 0:05:14]} 23. Rxe8 {[%emt 0:01:27]} Kxe8 {[%emt 0:02:23]} 24. Qe3+ {[%emt 0:08:08]} Kf7 {[%emt 0:05:07]} 25. Be2 {[%emt 0:02:37]} Bg6 {[%emt 0:13:53]} 26. Qd2 {[%emt 0:07:00]} Qe7 {[%emt 0:03:39]} 27. Ne1 {[%emt 0:05:01]} Nf5 {[%emt 0:03:50]} 28. Bd3 {[%emt 0:01:32]} Nd6 {[%emt 0:00:23]} 29. Kf1 {[%emt 0:02:30]} b6 {[%emt 0:02:37]} 30. Bxg6+ {[%emt 0:01:45]} hxg6 {[%emt 0:01:20]} 31. Nd3 {[%emt 0:00:33]} a5 {[%emt 0:04:56]} 32. Qe2 {[%emt 0:01:30]} Ne4 {[%emt 0:05:05]} 33. Qg4 {[%emt 0:05:06]} c5 {[%emt 0:04:35]} 34. Kg1 {[%emt 0:06:10]} c4 {[%emt 0:06:08]} 35. Nc1 {[%emt 0:00:53]} b5 {[%emt 0:01:30]} 36. Qe2 {[%emt 0:02:22]} b4 {[%emt 0:00:56]} 37. f3 {[%emt 0:00:53]} Nd6 {[%emt 0:01:49]} 38. Qxe7+ {[%emt 0:01:13]} Kxe7 {[%emt 0:00:02]} 39. Kf2 {[%emt 0:00:40]} Nb5 {[%emt 0:01:37]} 40. cxb4 {[%emt 0:00:23]} (40. Ne2 $2 b3 $19) 40... axb4 {[%emt 0:00:32]} (40... Nxd4 41. bxa5 Kd7 42. Ne2 $18) 41. Ke3 {[%emt 0:30:42]} Kd6 {[%emt 0:14:32]} 42. Ne2 {[%emt 0:00:00]} Kc6 {[%emt 0:00:14]} 43. g4 {[%emt 0:00:00]} Nc7 {[%emt 0:01:53]} 44. f4 {[%emt 0:00:00]} Ne6 {[%emt 0:02:11]} 45. fxg5 {[%emt 0:00:00]} fxg5 {[%emt 0:01:18]} 46. Ng1 {[%emt 0:00:00]} Nf4 {[%emt 0:05:22]} 47. h4 {[%emt 0:00:00]} Ng2+ {[%emt 0:02:44]} 48. Kf2 {[%emt 0:00:00]} Nf4 {[%emt 0:03:19]} 49. Ke3 $1 {[%emt 0:00:00]} Kb5 {[%emt 0:04:27]} 50. b3 {[%emt 0:00:00]} Ne6 {[%emt 0:01:13]} 51. h5 {[%emt 0:00:00]} gxh5 {[%emt 0:00:27]} 52. gxh5 {[%emt 0:00:00]} Ng7 {[%emt 0:00:08]} 53. Nh3 $1 {[%emt 0:04:12]} g4 {[%emt 0:06:15]} (53... Nxh5 {simplifies} 54. Nxg5 Ng3 55. Nf3 Ne4) 54. Nf4 {[%emt 0:00:30]} c3 {[%emt 0:00:32]} 55. Kd3 {[%emt 0:01:11]} (55. Nxd5 $2 Nxh5 56. Nc7+ Ka5 $19) (55. Ke2 $5 Nf5 $8 56. Kf2 $11) 55... g3 $2 {[%emt 0:00:28][%mdl 8192]} (55... Nf5 $11 {and Black stays safe.}) 56. h6 $1 $18 {[%emt 0:00:57]} (56. Nxd5 $2 g2 (56... Nxh5 $2 57. Ne3 $19) 57. a4+ Ka5 $19 (57... bxa3 $2 58. Nxc3+ Kb4 59. Ne2 $19)) 56... Ne6 {[%emt 0:00:01] [#]} 57. Ng2 $1 {[%emt 0:01:20]} (57. Nxe6 g2 58. h7 (58. Nc7+ $2 Kc6 $19) 58... g1=Q $11) 57... Ng5 {[%emt 0:00:08]} 58. Nf4 $2 {[%emt 0:00:23]} (58. Ne3 $18) 58... Kc6 {[%emt 0:00:56]} 59. Ng2 {[%emt 0:00:16]} Nh7 $2 {[%emt 0:00:40][%mdl 8192]} (59... Kb5 $11 60. Ne3 Kc6) 60. Ne3 $18 {[%emt 0:00:23]} Ng5 {[%emt 0:00:40] [#]} (60... Nf6 $142 61. Ke2 c2 62. Nxc2 g2) 61. Ke2 $1 $18 {[%emt 0:00:21]} Kd7 {[%emt 0:00:32]} 62. Kf1 {[%emt 0:00:25]} Ke6 {[%emt 0:00:36]} 63. Kg2 {[%emt 0:00:11]} Kf7 {[%emt 0:00:19]} 64. Kxg3 {[%emt 0:00:33]} (64. Nxd5 c2 65. Kxg3 c1=Q (65... c1=B 66. Nxb4 Ne4+ 67. Kf3 $14) 66. Kg4 Qg1+ (66... Nh7 67. Kf5 Qg5+ 68. Ke4 Qg6+ 69. Kf3 Qc6 70. Ke3 Qxd5 71. Kd3 Ng5 72. h7 Kg7 73. a4 Kxh7 74. a5 Qxb3+ 75. Ke2 Qf3+ 76. Kd2 Ne4+ 77. Kc2 Qc3+ 78. Kb1 Nd2+ 79. Ka2 Qa3#) 67. Kf4 Ne6+ (67... Qxd4+ 68. Kxg5 Qxd5+ 69. Kf4 Kg6 70. h7 Kxh7 71. Kg4 Qe4+ 72. Kg3 Qe3+ 73. Kh2 Qf2+ 74. Kh3 Qg1 75. a4 Kg6 76. Kh4 Kf5 77. Kh3 Kf4 78. Kh4 Qh2#) 68. Ke5 Qxd4+ (68... Nxd4 $2 69. Ke4 $19) 69. Kd6 Nf4 (69... Qc5+ 70. Ke5 Qd4+ 71. Kd6 Nf4 72. h7 Qxd5+ 73. Kc7 Qe6 74. Kb8 Nd5 75. Ka8 Qc6+ 76. Ka7 Qb6+ 77. Ka8 Nc7#) 70. h7 Qxd5+ 71. Kc7 Qc5+ 72. Kb7 Nd5 73. Ka8 Qc6+ 74. Ka7 Qc7+ 75. Ka8 Nb6#) 64... Ne6 {[%emt 0:00:25]} 65. Nc2 {[%emt 0:00:28]} (65. Nxd5 $2 {too greedy.} c2 (65... Nxd4 $2 {loses.} 66. Nxb4 Nf5+ 67. Kf4 $18) 66. Ne3 c1=Q $19 (66... c1=B 67. h7 $11)) 1-0

[Event "45th FIDE Olympiad 2024"]
[Site "Budapest"]
[Date "2024.09.19"]
[Round "8.55"]
[White "Belzo, Krzysztof"]
[Black "Terubea, Ronald"]
[Result "1-0"]
[WhiteElo "2076"]
[BlackElo "1836"]
[PlyCount "87"]
[EventDate "2024.09.05"]
[EventType "team-tourn"]
[EventCountry "HUN"]
[WhiteTeam "Jersey"]
[BlackTeam "Fiji"]
[BlackTeamCountry "FIJ"]
[TimeControl "40/5400+30:1800+30"]

1. d4 f5 2. c4 e6 3. Nc3 Nf6 4. Nf3 b6 5. g3 Bb4 6. Qb3 Bxc3+ 7. Qxc3 d6 8. Bg2 Bb7 9. c5 Ne4 10. Qc2 bxc5 11. Ng5 Qf6 12. dxc5 Nxc5 13. Bxb7 Nxb7 14. Qxc7 Qe7 15. Nxe6 Qxe6 16. Qxb7 Qe4 17. Qxe4+ fxe4 18. Bf4 Nd7 19. Bxd6 Kf7 20. O-O Rac8 21. Rac1 Ke6 22. Bb4 Rhd8 23. Rfd1 Rxc1 24. Rxc1 Ra8 25. Rc6+ Kf7 26. Rc4 Nf6 27. Bc3 Nd5 28. Rxe4 Nxc3 29. bxc3 Rc8 30. Ra4 Rc7 31. Ra6 Ke7 32. f4 Kd7 33. Kf2 Kc8 34. e4 Kb7 35. Ra3 Kc6 36. Ke3 Kc5 37. Ra4 Kb5 38. Rb4+ Ka5 39. Kd3 a6 40. e5 g6 41. g4 h6 42. f5 h5 43. f6 h4 44. Re4 1-0

[Event "45th FIDE Olympiad 2024"]
[Site "Budapest"]
[Date "2024.09.19"]
[Round "8.56"]
[White "Smirin, Ilia"]
[Black "Almeida Quintana, Omar"]
[Result "1-0"]
[ECO "C41"]
[WhiteElo "2575"]
[BlackElo "2492"]
[Annotator "RC"]
[PlyCount "75"]
[EventDate "2024.09.05"]
[EventType "team-tourn"]
[EventCountry "HUN"]
[SourceTitle "playchess.com"]
[Source "ChessBase"]
[SourceQuality "1"]
[WhiteTeam "Israel"]
[BlackTeam "Cuba"]
[WhiteTeamCountry "ISR"]
[BlackTeamCountry "CUB"]
[TimeControl "40/5400+30:1800+30"]

1. e4 {[%emt 0:00:14]} d6 {[%emt 0:00:07]} 2. d4 {[%emt 0:00:09]} Nf6 {[%emt 0:00:03]} 3. Nc3 {[%emt 0:00:07]} e5 {[%emt 0:00:02]} 4. Nf3 {[%emt 0:00:54]} Nbd7 {[%emt 0:00:04]} 5. Bc4 {[%emt 0:00:35]} Be7 {[%emt 0:00:03]} 6. O-O {[%emt 0:00:12]} O-O {[%emt 0:00:02]} 7. Re1 {[%emt 0:00:29]} c6 {[%emt 0:00:12]} 8. a4 {[%emt 0:01:55]} h6 {[%emt 0:00:05]} 9. Ba2 {[%emt 0:03:09]} Re8 {[%emt 0:00:14]} 10. h3 {[%emt 0:05:30]} exd4 {[%emt 0:04:24]} 11. Nxd4 {[%emt 0:02:11]} Bf8 {[%emt 0:00:09]} 12. Bf4 {[%emt 0:04:11]} Ne5 {[%emt 0:08:04]} 13. a5 {[%emt 0:04:07]} Bd7 {[%emt 0:00:16]} 14. Bg3 {[%emt 0:01:57]} b5 {[%emt 0:10:59]} 15. axb6 {[%emt 0:02:28]} axb6 {[%emt 0:04:28]} 16. f4 {[%emt 0:00:34]} Ng6 {[%emt 0:00:07]} 17. Kh2 {[%emt 0:09:25]} b5 {[%emt 0:18:11]} 18. e5 {[%emt 0:01:47]} b4 {[%emt 0:00:06]} 19. exf6 {[%emt 0:05:20]} Rxe1 {[%emt 0:02:37]} 20. Qxe1 {[%emt 0:10:26]} bxc3 {[%emt 0:00:57]} 21. Qxc3 {[%emt 0:00:03]} c5 {[%emt 0:24:56]} 22. Qb3 {[%emt 0:04:35]} Rxa2 {[%emt 0:00:13]} 23. Rxa2 {[%emt 0:00:43]} cxd4 {[%emt 0:02:22]} 24. fxg7 {[%emt 0:02:59]} Kxg7 {[%emt 0:02:15]} 25. Ra7 {[%emt 0:04:54]} Be7 {[%emt 0:12:45]} 26. Qd5 {[%emt 0:01:09]} Be6 {[%emt 0:02:18]} 27. Qxd4+ {[%emt 0:00:59]} Bf6 {[%emt 0:00:01]} 28. Qe4 {[%emt 0:01:46]} Qc8 {[%emt 0:02:03]} 29. b4 {[%emt 0:03:50]} d5 {[%emt 0:01:01]} 30. Qd3 {[%emt 0:03:31]} Ne7 {[%emt 0:02:07]} 31. Bf2 {[%emt 0:01:11]} Ng6 {[%emt 0:01:52]} 32. Bd4 {[%emt 0:01:30]} Bxd4 {[%emt 0:01:18]} 33. Qxd4+ {[%emt 0:00:10]} Kg8 {[%emt 0:00:01]} 34. b5 {[%emt 0:10:01]} Qxc2 {[%emt 0:01:24]} 35. b6 {[%emt 0:02:07]} Nh4 {[%emt 0:01:16]} 36. Ra8+ {[%emt 0:00:28]} Kh7 {[%emt 0:00:55]} 37. Qh8+ {[%emt 0:00:39]} Kg6 {[%emt 0:00:01]} 38. Rg8+ {[%emt 0:00:09]} 1-0

[Event "45th FIDE Olympiad 2024"]
[Site "Budapest"]
[Date "2024.09.19"]
[Round "8.56"]
[White "Maharaj, Yash Krishen"]
[Black "Forbes, Garry"]
[Result "0-1"]
[WhiteElo "1847"]
[BlackElo "1858"]
[PlyCount "102"]
[EventDate "2024.09.05"]
[EventType "team-tourn"]
[EventCountry "HUN"]
[WhiteTeam "Fiji"]
[BlackTeam "Jersey"]
[WhiteTeamCountry "FIJ"]
[TimeControl "40/5400+30:1800+30"]

1. e4 d5 2. exd5 Nf6 3. d4 Bg4 4. f3 Bf5 5. Bb5+ c6 6. dxc6 Nxc6 7. c3 e6 8. Ne2 Be7 9. O-O O-O 10. Bd3 Bxd3 11. Qxd3 e5 12. Be3 exd4 13. Nxd4 Nd5 14. Nxc6 bxc6 15. Nd2 Nxe3 16. Qxe3 Bg5 17. f4 Re8 18. Qf3 Qb6+ 19. Kh1 Be7 20. b3 Rad8 21. Ne4 f5 22. Ng5 Bxg5 23. fxg5 g6 24. Rad1 Rxd1 25. Rxd1 Re3 26. Qf2 Rxc3 27. Qxb6 axb6 28. h4 Rc2 29. Ra1 Rb2 30. Kh2 c5 31. Kg3 Kf7 32. Kf3 Ke6 33. g3 Rc2 34. Re1+ Kf7 35. Re2 Rc3+ 36. Re3 Rc2 37. a4 Rd2 38. Kf4 Rd4+ 39. Ke5 Rd7 40. g4 Re7+ 41. Kf4 Rxe3 42. Kxe3 fxg4 43. Kf4 Ke6 44. Kxg4 Kd5 45. h5 Kd4 46. hxg6 hxg6 47. Kf4 Kc3 48. Ke5 Kxb3 49. Kf6 c4 50. Kxg6 c3 51. a5 bxa5 {0-} 0-1

[Event "45th FIDE Olympiad 2024"]
[Site "Budapest"]
[Date "2024.09.19"]
[Round "8.57"]
[White "Kadric, Denis"]
[Black "Yilmaz, Mustafa"]
[Result "1-0"]
[ECO "C54"]
[WhiteElo "2553"]
[BlackElo "2587"]
[Annotator "TA"]
[PlyCount "69"]
[EventDate "2024.09.05"]
[EventType "team-tourn"]
[EventCountry "HUN"]
[SourceTitle "playchess.com"]
[Source "ChessBase"]
[SourceQuality "1"]
[WhiteTeam "Montenegro"]
[BlackTeam "Turkiye"]
[WhiteTeamCountry "MNE"]
[TimeControl "40/5400+30:1800+30"]

{[%evp 12,69,13,4,35,29,36,21,26,31,50,45,60,40,65,19,50,29,116,139,122,125,110,123,128,109,127,98,143,144,123,127,291,299,295,305,306,295,305,305,326,219,330,331,371,368,472,475,962,960,886,745,956,946,904,875,857,649,1109,1068]} 1. e4 {[%emt 0:00:02]} e5 {[%emt 0:00:04]} 2. Nf3 {[%emt 0:00:07]} Nc6 {[%emt 0:00:06]} 3. Bc4 {[%emt 0:00:25]} Bc5 {[%emt 0:00:05]} 4. c3 {[%emt 0:00:46]} Nf6 {[%emt 0:00:06]} 5. d3 {[%emt 0:00:01]} d6 {[%emt 0:00:21]} 6. Bg5 {[%emt 0:02:55]} h6 {[%emt 0:00:37]} 7. Bh4 {[%emt 0:00:03]} a5 {[%emt 0:00:06]} 8. Nbd2 {[%emt 0:00:26]} Ba7 {[%emt 0:02:00]} 9. a3 {[%emt 0:00:29]} g5 {[%emt 0:27:39] The position is equal.} 10. Bg3 {[%emt 0:00:12]} Qe7 {[%emt 0:06:14]} 11. O-O {[%emt 0:01:30]} Bd7 {[%emt 0:05:38]} 12. b4 {[%emt 0:00:56]} O-O-O {[%emt 0:04:47]} 13. b5 {[%emt 0:23:01]} (13. Qb3 $14 {should be considered.}) 13... Nb8 $11 {[%emt 0:00:24]} 14. d4 {[%emt 0:02:37]} Nh5 {[%emt 0:02:34] [#]} (14... Bg4 $11 {keeps the balance.}) 15. Bxe5 $1 $16 {[%emt 0:06:11][%mdl 512]} dxe5 {[%emt 0:17:31]} 16. Nxe5 {[%emt 0:00:07]} Nf4 {[%emt 0:00:42]} 17. Nxf7 {[%emt 0:01:14]} Bxb5 {[%emt 0:04:09]} 18. Nxh8 {[%emt 0:00:07]} Bxc4 {[%emt 0:00:25]} 19. Nxc4 {[%emt 0:00:04][%cal Og2g3] g3! would now be deadly.} Qxe4 {[%emt 0:01:25][%csl Gf4][%cal Re4g2]} 20. Qg4+ {[%emt 0:19:22]} Nd7 {[%emt 0:00:01]} 21. Rae1 {[%emt 0:03:38] Dodges Ne2+} Qd5 {[%emt 0:10:18] This costs Black the game.} (21... Qh7 $16 {was worth a try.}) 22. Ne3 $18 {[%emt 0:00:05]} Qg8 {[%emt 0:01:20]} 23. g3 $1 {[%emt 0:01:19]} h5 {[%emt 0:00:41]} 24. Qf5 {[%emt 0:04:56]} Rf8 {[%emt 0:03:56]} 25. Qxa5 {[%emt 0:00:06]} Bb6 {[%emt 0:00:14]} 26. Qa8+ {[%emt 0:04:44]} Nb8 {[%emt 0:00:03]} 27. Qa4 {[%emt 0:02:36][%cal Oe3f5] aiming for Nf5!} Nh3+ {[%emt 0:05:28]} 28. Kg2 {[%emt 0:00:07] Hoping for Nf5.} Nf4+ {[%emt 0:01:14] [#]} 29. Kh1 $1 {[%emt 0:01:49] White is clearly winning.} ({Less strong is} 29. gxf4 gxf4+ 30. Kh1 fxe3 $14) 29... Nh3 {[%emt 0:03:51] [#]} (29... Nd3 $142 30. Re2 h4) 30. Nf5 $1 {[%emt 0:03:58] Ne7+ is the strong threat.} Qxh8 {[%emt 0:02:40]} 31. Ne7+ {[%emt 0:03:29]} Kd8 {[%emt 0:00:00]} 32. Qa8 {[%emt 0:00:12][%csl LRb7,LRb8]} Kd7 {[%emt 0:00:09]} 33. Qxb7 {[%emt 0:00:04] Qd5+ would kill now.} Qf6 {[%emt 0:00:58]} 34. Kg2 {[%emt 0:02:04]} g4 {[%emt 0:01:10]} 35. Qd5+ {[%emt 0:00:04] Weighted Error Value: White=0.20 (precise) /Black=0.36.  Loses game:     	---       	Black=1      Mistake:       	White=1     	Black=2      Inaccurate:     	---       	Black=2      OK:         	White=12    	Black=7      Best:        	White=2     	Black=2      Strong:       	White=2     	---        Brilliant:      	White=1     	---} 1-0

[Event "45th FIDE Olympiad 2024"]
[Site "Budapest"]
[Date "2024.09.19"]
[Round "8.57"]
[White "Pereira, Sergio"]
[Black "Misambo, .J. Kilasa"]
[Result "1-0"]
[WhiteElo "1988"]
[BlackElo "1959"]
[PlyCount "77"]
[EventDate "2024.09.05"]
[EventType "team-tourn"]
[EventCountry "HUN"]
[WhiteTeam "Sao Tome and Principe"]
[BlackTeam "Tanzania"]
[WhiteTeamCountry "SAO"]
[BlackTeamCountry "TAN"]
[TimeControl "40/5400+30:1800+30"]

1. e4 d6 2. d4 Nf6 3. Nc3 g6 4. f4 Bg7 5. Nf3 O-O 6. Bd3 Nc6 7. e5 dxe5 8. fxe5 Nd5 9. Nxd5 Qxd5 10. c4 Qd8 11. Be3 a5 12. h3 e6 13. Qd2 f6 14. h4 fxe5 15. h5 exd4 16. Bh6 Rxf3 17. gxf3 Ne5 18. Be4 Qf8 19. Bxg7 Nxf3+ 20. Bxf3 Qxf3 21. Rh4 Qg3+ 22. Qf2 Qxf2+ 23. Kxf2 Kxg7 24. h6+ Kf7 25. Rxd4 b6 26. Rad1 Kf6 27. Rd8 Kg5 28. Rh8 Kxh6 29. Rdd8 Bb7 30. Rxa8 Bxa8 31. Rxa8 Kg5 32. Ra7 h5 33. Rxc7 h4 34. Rc6 Kf5 35. Rxb6 g5 36. c5 g4 37. c6 g3+ 38. Kg1 h3 39. c7 1-0

[Event "45th FIDE Olympiad 2024"]
[Site "Budapest"]
[Date "2024.09.19"]
[Round "8.58"]
[White "Gurel, Ediz"]
[Black "Petrov, Nikita"]
[Result "1-0"]
[ECO "E32"]
[WhiteElo "2602"]
[BlackElo "2574"]
[Annotator "TA"]
[PlyCount "87"]
[EventDate "2024.09.05"]
[EventType "team-tourn"]
[EventCountry "HUN"]
[SourceTitle "playchess.com"]
[Source "ChessBase"]
[SourceQuality "1"]
[WhiteTeam "Turkiye"]
[BlackTeam "Montenegro"]
[BlackTeamCountry "MNE"]
[TimeControl "40/5400+30:1800+30"]

{[%evp 10,87,0,-10,15,14,31,4,0,0,12,12,8,0,0,0,16,8,36,45,37,30,37,28,31,27,30,33,27,9,35,25,39,33,42,41,44,40,49,39,51,32,47,62,58,72,80,84,66,69,127,120,153,154,159,137,173,46,247,237,604,612,573,550,578,508,29980,29981,29981,29982,29982,29983,29983,29984,29984,29985,29986,29987,29987,29988]} 1. d4 {[%emt 0:00:06]} Nf6 {[%emt 0:00:11]} 2. c4 {[%emt 0:00:12]} e6 {[%emt 0:00:08]} 3. Nc3 {[%emt 0:00:06]} Bb4 {[%emt 0:00:44]} 4. Qc2 {[%emt 0:00:57]} O-O {[%emt 0:01:05]} 5. a3 {[%emt 0:00:41]} Bxc3+ {[%emt 0:00:07]} 6. Qxc3 {[%emt 0:00:04]} Re8 {[%emt 0:00:29] Recently 6...d5 got a lot of attention. E32: Nimzo-Indian: Classical (4 Qc2): 4...0-0.} 7. Nf3 {[%emt 0:03:51]} d6 {[%emt 0:00:21]} 8. Bg5 {[%emt 0:03:37]} h6 {[%emt 0:00:53]} 9. Bh4 {[%emt 0:04:21]} Qe7 {[%emt 0:00:44]} 10. e3 {[%emt 0:01:55]} e5 {[%emt 0:02:11]} 11. dxe5 {[%emt 0:05:31]} dxe5 {[%emt 0:00:06]} 12. Be2 {[%emt 0:00:40]} Bf5 {[%emt 0:05:30]} 13. Nd2 {[%emt 0:11:47]} Ne4 {[%emt 0:05:23]} 14. Nxe4 $1 {[%emt 0:00:17]} Qxh4 {[%emt 0:00:06]} 15. Ng3 {[%emt 0:00:08]} Bg4 $146 {[%emt 0:02:41]} ({Predecessor:} 15... Bh7 16. Rd1 Nc6 17. O-O Rad8 18. Rd5 Rd6 19. Rxd6 cxd6 20. Rd1 Qe7 21. Bd3 e4 {1-0 Alekseev,E (2548)-Rozentalis,E (2455) ISR-chT Israel 2024 (2.35)}) 16. Bxg4 {[%emt 0:06:25]} Qxg4 {[%emt 0:00:31]} 17. O-O {[%emt 0:00:06]} Nd7 {[%emt 0:04:52]} 18. Rad1 {[%emt 0:05:06]} Nf6 {[%emt 0:02:16]} 19. Rd2 {[%emt 0:06:05]} h5 {[%emt 0:04:03]} 20. Qc2 {[%emt 0:01:29]} Rad8 {[%emt 0:03:07]} 21. Rfd1 {[%emt 0:01:10]} Rxd2 {[%emt 0:00:44]} 22. Rxd2 {[%emt 0:00:04]} e4 {[%emt 0:18:31]} 23. h3 {[%emt 0:04:22]} Qe6 {[%emt 0:00:20]} 24. Ne2 {[%emt 0:02:41][%cal Bg3e2,Be2c3,Bc3a4,Ba4c5][%mdl 32]} Qe5 {[%emt 0:02:38]} 25. Nc3 {[%emt 0:02:38]} c6 {[%emt 0:01:09]} 26. Qa4 {[%emt 0:01:57]} Qc5 {[%emt 0:04:45]} 27. Rd4 {[%emt 0:01:18]} a5 {[%emt 0:01:43]} 28. Qb3 {[%emt 0:06:39]} Re7 {[%emt 0:02:44]} 29. Na4 $36 {[%emt 0:00:29][%mdl 2048] Black is under pressure.} Qe5 {[%emt 0:00:41]} (29... Qf5 $14) 30. Qb6 $16 {[%emt 0:00:35]} g5 {[%emt 0:01:32]} 31. Nc5 {[%emt 0:04:42]} g4 {[%emt 0:07:14]} 32. Nxb7 {[%emt 0:07:49] White is more active.} gxh3 {[%emt 0:01:35]} 33. Qxa5 {[%emt 0:01:21]} (33. Nxa5 $2 Ng4 34. g3 Kg7 $19 (34... h2+ $2 35. Kh1 $19)) (33. gxh3 $18 Qg5+ 34. Kf1) 33... hxg2 $2 {[%emt 0:02:42]} ({Better is} 33... Nd5 $1 $14 34. gxh3 (34. cxd5 Qg5 $11) 34... Rxb7) 34. Kxg2 {[%emt 0:03:16]} Nd5 $2 {[%emt 0:05:31]} (34... Ng4 35. Qxe5 Rxe5) 35. cxd5 $18 {[%emt 0:00:33]} Rxb7 {[%emt 0:00:38][%mdl 4096] Endgame. KQR-KQR} 36. Qd8+ {[%emt 0:00:25]} Kh7 {[%emt 0:00:09]} 37. dxc6 {[%emt 0:00:34]} Rxb2 {[%emt 0:01:28] [#]} (37... Qg7+ $18 38. Kf1 Rxb2) 38. Rd5 $1 {[%emt 0:00:38]} Rxf2+ {[%emt 0:05:00]} 39. Kxf2 {[%emt 0:00:04]} Qh2+ {[%emt 0:00:02]} 40. Ke1 {[%emt 0:00:05]} Qg1+ {[%emt 0:00:05]} 41. Kd2 {[%emt 0:30:12]} Qf2+ {[%emt 0:30:05]} 42. Kc3 {[%emt 0:00:28]} Qxe3+ {[%emt 0:00:10]} 43. Kb4 {[%emt 0:00:30]} Qe1+ {[%emt 0:00:11]} 44. Ka4 {[%emt 0:00:03]} 1-0